bitfinex/quotes_BTCUSD_20230901
["timestamp","ask_amount","ask_price","bid_price","bid_amount"]
[1693594819006,0.01318141,25667.0,25666.0,0.08590372]
[1693594819179,0.01318141,25667.0,25666.0,0.08568372]
[1693594819876,0.01318141,25667.0,25666.0,0.20256972]
[1693594820077,0.01318141,25667.0,25666.0,0.24620469]
[1693594820718,0.01318141,25667.0,25666.0,0.08568372]
[1693594821589,0.01318141,25667.0,25666.0,0.43634172]
[1693594822638,0.1641,25671.0,25666.0,1.1234285]
[1693594822639,0.01318141,25668.0,25666.0,1.1234285]
[1693594822878,0.01318141,25669.0,25667.0,0.38708678]
[1693594823083,0.01318141,25669.0,25668.0,0.767508]
[1693594823291,0.01318141,25669.0,25668.0,1.10473569]
[1693594824781,0.01318141,25671.0,25668.0,1.49182247]
[1693594824994,0.01318141,25670.0,25668.0,1.49182247]
[1693594825201,0.01318141,25670.0,25669.0,0.06768683]
[1693594825413,0.01318141,25670.0,25669.0,0.41830283]
[1693594825615,0.01318141,25670.0,25669.0,0.71830283]
[1693594826409,0.01318141,25670.0,25669.0,0.73430283]
[1693594826634,0.01318141,25670.0,25669.0,0.76030283]
[1693594827045,0.01318141,25667.0,25666.0,0.01890372]
[1693594827256,1.3018099,25667.0,25666.0,0.01890372]
[1693594827498,0.5551029,25667.0,25664.0,0.23477356]
[1693594827696,0.01318141,25665.0,25664.0,0.00098656]
[1693594827901,0.16801612,25665.0,25664.0,0.00098656]
[1693594828076,0.16801612,25665.0,25659.0,0.272]
[1693594828077,0.01318141,25660.0,25659.0,0.272]
[1693594828308,0.16801612,25660.0,25659.0,0.11789502]
[1693594828528,0.16801612,25660.0,25659.0,0.35173102]
[1693594828739,0.01318141,25660.0,25659.0,0.35075]
[1693594828948,0.01318141,25660.0,25659.0,0.385825]
[1693594829154,0.01318141,25660.0,25659.0,0.40382604]
[1693594829585,0.01318141,25660.0,25659.0,0.41582604]
[1693594829795,0.01518141,25660.0,25659.0,0.45360888]
[1693594829999,0.01318141,25660.0,25659.0,0.40460888]
[1693594830206,0.01518141,25660.0,25659.0,0.44160888]
[1693594830410,0.01618141,25660.0,25659.0,0.20969788]
[1693594830834,0.01418141,25660.0,25659.0,0.17269788]
[1693594831652,0.01318141,25660.0,25659.0,0.13569788]
[1693594831858,0.01318141,25660.0,25659.0,0.01878388]
[1693594832037,0.01318141,25660.0,25659.0,0.05178388]
[1693594832038,0.01418141,25660.0,25659.0,0.05178388]
[1693594832271,0.01418141,25660.0,25659.0,0.03378284]
[1693594832692,0.01418141,25660.0,25659.0,0.033]
[1693594832895,1.55766959,25660.0,25659.0,0.033]
[1693594833303,0.00144881,25660.0,25659.0,0.033]
[1693594833691,1.55766959,25660.0,25659.0,0.033]
[1693594833891,0.00144881,25660.0,25659.0,0.033]
[1693594834516,1.55766959,25660.0,25659.0,0.033]
[1693594836384,2.30223659,25660.0,25659.0,0.033]
[1693594837622,1.71766959,25660.0,25659.0,0.033]
[1693594837879,0.54853559,25660.0,25659.0,0.033]
[1693594838091,1.13310259,25660.0,25659.0,0.033]
[1693594838496,2.30223659,25660.0,25659.0,0.033]
[1693594838709,2.37483659,25660.0,25659.0,0.033]
[1693594838913,2.30223659,25660.0,25659.0,0.033]
[1693594839745,1.71766959,25660.0,25659.0,0.033]
[1693594840152,2.30223659,25660.0,25659.0,0.033]
[1693594841849,0.54853559,25660.0,25659.0,0.033]
[1693594842054,1.71766959,25660.0,25659.0,0.033]
[1693594842470,2.30223659,25660.0,25659.0,0.033]
[1693594843091,1.71766959,25660.0,25659.0,0.033]
[1693594843926,1.13310259,25660.0,25659.0,0.033]
[1693594844366,0.16144881,25660.0,25659.0,0.033]
[1693594844785,0.74601581,25660.0,25659.0,0.033]
[1693594848780,0.16144881,25660.0,25659.0,0.033]
[1693594849182,0.00144881,25660.0,25659.0,0.033]
[1693594849387,0.00144881,25660.0,25659.0,0.4265662]
[1693594849613,0.00144881,25660.0,25659.0,0.42732835]
[1693594849996,0.00144881,25660.0,25659.0,0.44547593]
[1693594851412,0.00144881,25660.0,25659.0,0.32855793]
[1693594851613,0.1795,25663.0,25659.0,0.16882773]
[1693594851614,1.34497781,25663.0,25659.0,0.16882773]
[1693594851824,0.584525,25662.0,25659.0,0.05190973]
[1693594852435,1.169059,25662.0,25659.0,0.03090973]
[1693594852733,1.169059,25662.0,25659.0,0.03476215]
[1693594852937,1.169059,25662.0,25659.0,0.08913466]
[1693594853334,1.170059,25662.0,25659.0,0.12313466]
[1693594853745,0.745525,25662.0,25659.0,0.23928951]
[1693594854310,0.745525,25662.0,25660.0,0.01814324]
[1693594854736,0.745525,25662.0,25659.0,0.23928951]
[1693594854938,0.001,25662.0,25660.0,0.04731265]
[1693594855139,0.001,25662.0,25660.0,0.59264007]
[1693594855374,0.001,25662.0,25661.0,0.63899963]
[1693594855580,0.001,25663.0,25661.0,1.34510763]
[1693594855751,0.25310411,25671.0,25662.0,0.650712]
[1693594855752,0.06,25671.0,25662.0,0.650712]
[1693594856015,0.41900411,25673.0,25665.0,0.1623]
[1693594856212,0.41900411,25673.0,25667.0,0.467516]
[1693594856423,1.14293228,25673.0,25667.0,0.467516]
[1693594856628,1.58754811,25673.0,25667.0,0.46863686]
[1693594857032,1.58754811,25673.0,25667.0,0.46963264]
[1693594857240,1.70720428,25673.0,25669.0,0.11687]
[1693594857435,1.70720428,25673.0,25669.0,0.26607142]
[1693594857641,1.06449789,25672.0,25670.0,0.2692]
[1693594857837,0.584316,25671.0,25670.0,0.2692]
[1693594858060,1.55571878,25671.0,25670.0,0.2692]
[1693594858262,2.14003478,25671.0,25670.0,0.30081633]
[1693594858611,1.55571878,25671.0,25670.0,0.30081633]
[1693594859155,1.55771878,25671.0,25670.0,0.30381633]
[1693594859571,1.55771878,25671.0,25670.0,0.2722]
[1693594860545,1.56171878,25671.0,25670.0,0.2752]
[1693594861161,0.006,25671.0,25670.0,0.2752]
[1693594861333,0.006,25671.0,25670.0,0.508934]
[1693594861676,0.006,25671.0,25670.0,0.64378884]
[1693594861788,0.006,25671.0,25670.0,0.74078125]
[1693594861999,0.32960411,25675.0,25670.0,0.73478125]
[1693594862196,1.05348828,25675.0,25670.0,0.88398267]
[1693594862398,0.006,25671.0,25670.0,0.50404725]
[1693594862604,0.004,25671.0,25670.0,0.61991425]
[1693594862801,0.67736111,25674.0,25670.0,0.61791425]
[1693594863001,0.67736111,25674.0,25671.0,0.07357723]
[1693594863266,1.26161811,25674.0,25671.0,0.07357723]
[1693594863600,0.16,25672.0,25670.0,0.2732]
[1693594863805,0.16,25672.0,25668.0,0.30785609]
[1693594863806,1.168632,25671.0,25668.0,0.30785609]
[1693594864020,1.32346671,25671.0,25668.0,0.30785609]
[1693594864223,1.168632,25671.0,25668.0,0.30785609]
[1693594864423,1.168632,25671.0,25669.0,0.04247351]
[1693594865221,0.584316,25671.0,25669.0,0.04247351]
[1693594865450,0.153,25672.0,25669.0,0.15934551]
[1693594865650,0.14,25672.0,25669.0,0.27621751]
[1693594865858,0.75738511,25673.0,25670.0,0.01798106]
[1693594866080,0.15310411,25673.0,25671.0,0.116863]
[1693594866292,0.06,25673.0,25671.0,0.116863]
[1693594866498,0.06,25673.0,25670.0,0.20044527]
[1693594866700,0.06,25673.0,25670.0,0.31731027]
[1693594867112,0.06,25673.0,25670.0,0.08358027]
[1693594867113,0.73942842,25673.0,25670.0,0.08358027]
[1693594867320,1.33070142,25673.0,25671.0,0.02004503]
[1693594867727,1.91497442,25673.0,25671.0,0.02004503]
[1693594867961,1.91497442,25673.0,25668.0,0.49464083]
[1693594868171,2.45689591,25673.0,25668.0,0.26089283]
[1693594868385,0.54478678,25672.0,25668.0,0.26089283]
[1693594868590,1.168641,25671.0,25668.0,0.26089283]
[1693594868806,1.752962,25671.0,25668.0,0.26089283]
[1693594869012,1.910662,25671.0,25670.0,0.005]
[1693594869191,1.910662,25671.0,25669.0,0.03777738]
[1693594869434,2.29774878,25671.0,25669.0,0.03777738]
[1693594869649,0.38708678,25670.0,25668.0,0.31489283]
[1693594869853,1.753086,25669.0,25668.0,0.02399283]
[1693594870065,2.14017278,25669.0,25666.0,0.2522]
[1693594870273,2.35500749,25669.0,25666.0,0.2522]
[1693594870455,0.45296678,25668.0,25663.0,0.00099515]
[1693594870683,1.90809171,25667.0,25664.0,0.2522]
[1693594870889,0.38708678,25666.0,25664.0,0.2522]
[1693594871100,0.584453,25665.0,25664.0,0.2522]
[1693594871307,1.55599278,25665.0,25664.0,0.2522]
[1693594871514,2.14044578,25665.0,25659.0,0.116917]
[1693594871719,0.54192149,25664.0,25660.0,0.0233836]
[1693594871929,1.169004,25663.0,25660.0,0.2755836]
[1693594872136,1.71092549,25663.0,25660.0,0.2755836]
[1693594872344,1.70719078,25663.0,25660.0,0.2755836]
[1693594872753,1.70719078,25663.0,25661.0,0.00113388]
[1693594872961,1.70719078,25663.0,25661.0,0.05228863]
[1693594873683,1.70719078,25663.0,25661.0,0.05115475]
[1693594874507,1.70719078,25663.0,25662.0,0.01810222]
[1693594874712,1.70719078,25663.0,25662.0,0.01885835]
[1693594875466,1.70919078,25663.0,25662.0,0.01885835]
[1693594875675,1.70919078,25663.0,25662.0,0.05391802]
[1693594875872,1.70719078,25663.0,25662.0,0.0358158]
[1693594876071,1.71319078,25663.0,25662.0,0.0358158]
[1693594876272,1.72019078,25663.0,25662.0,0.0358158]
[1693594876803,1.72019078,25663.0,25662.0,0.0538781]
[1693594878081,1.72019078,25663.0,25662.0,0.0358158]
[1693594878438,1.72019078,25663.0,25662.0,0.05391557]
[1693594879200,2.30469378,25663.0,25662.0,0.0188559]
[1693594879736,2.30469378,25663.0,25662.0,0.01809977]
[1693594881252,0.1641,25663.0,25662.0,0.01309977]
[1693594881439,0.1641,25663.0,25662.0,0.29117331]
[1693594881440,0.013,25663.0,25662.0,0.29117331]
[1693594881673,0.013,25663.0,25662.0,0.3090458]
[1693594881875,0.013,25663.0,25662.0,0.42708478]
[1693594882575,0.013,25663.0,25662.0,0.81417156]
[1693594882809,0.013,25663.0,25662.0,1.23417156]
[1693594883026,0.09315542,25671.0,25663.0,0.02]
[1693594883237,0.38708678,25671.0,25665.0,0.629852]
[1693594883457,0.38708678,25671.0,25666.0,0.14920142]
[1693594883672,0.54168678,25671.0,25667.0,0.350638]
[1693594883889,0.1546,25671.0,25667.0,0.49983942]
[1693594884105,0.1546,25671.0,25668.0,0.2665]
[1693594884330,0.1546,25671.0,25669.0,0.07663394]
[1693594884545,0.738919,25671.0,25669.0,0.07663394]
[1693594884906,0.740919,25671.0,25669.0,0.07663394]
[1693594885465,0.745919,25671.0,25669.0,0.07763394]
[1693594885761,0.745919,25671.0,25669.0,0.003]
[1693594885762,1.0381222,25670.0,25669.0,0.003]
[1693594886074,3.15313018,25670.0,25669.0,0.003]
[1693594886310,3.36502102,25670.0,25669.0,0.003]
[1693594886520,3.93630089,25670.0,25669.0,0.003]
[1693594886737,3.68685234,25670.0,25669.0,0.003]
[1693594886951,3.74546538,25670.0,25669.0,0.003]
[1693594887157,3.48957234,25670.0,25669.0,0.003]
[1693594887364,3.42285234,25670.0,25669.0,0.003]
[1693594887578,3.91021649,25670.0,25669.0,0.001]
[1693594887797,3.80332029,25670.0,25669.0,0.001]
[1693594887972,3.89088029,25670.0,25669.0,0.003]
[1693594888210,3.91056029,25670.0,25669.0,0.003]
[1693594888358,0.06,25664.0,25663.0,0.0009823]
[1693594888559,1.59841538,25664.0,25663.0,0.0009823]
[1693594888760,0.04,25660.0,25656.0,0.116931]
[1693594889079,1.12651549,25659.0,25656.0,0.00099805]
[1693594889285,1.71110949,25659.0,25656.0,0.00099805]
[1693594889492,1.71110949,25659.0,25656.0,0.06392825]
[1693594889719,1.87450949,25659.0,25657.0,0.00076348]
[1693594889890,1.71967478,25659.0,25657.0,0.00076348]
[1693594890726,1.71967478,25659.0,25656.0,0.06392825]
[1693594890932,1.71967478,25659.0,25656.0,0.07092825]
[1693594891132,1.71967478,25659.0,25657.0,0.0475679]
[1693594891462,1.71967478,25659.0,25657.0,0.03047952]
[1693594891590,1.71967478,25659.0,25657.0,0.03947952]
[1693594891785,1.71967478,25659.0,25657.0,0.03047952]
[1693594892253,1.71967478,25659.0,25656.0,0.08192825]
[1693594892254,1.72067478,25659.0,25656.0,0.08192825]
[1693594892451,1.71967478,25659.0,25656.0,0.05892825]
[1693594892655,1.71967478,25659.0,25657.0,0.009]
[1693594892836,1.71967478,25659.0,25657.0,0.02608838]
[1693594893246,1.71967478,25659.0,25657.0,0.04088836]
[1693594893979,1.71967478,25659.0,25657.0,0.009]
[1693594896339,0.06,25658.0,25657.0,0.009]
[1693594896539,2.20092278,25658.0,25657.0,0.009]
[1693594897490,0.04,25657.0,25654.0,0.39444]
[1693594897670,0.38708678,25656.0,25654.0,0.39444]
[1693594898099,0.38708678,25656.0,25655.0,0.01713286]
[1693594898701,0.38708678,25656.0,25655.0,0.01761822]
[1693594899105,0.39908678,25656.0,25655.0,0.01761822]
[1693594899649,0.39908678,25656.0,25655.0,0.01778736]
[1693594900192,0.012,25656.0,25655.0,0.73301392]
[1693594900421,0.012,25656.0,25655.0,1.1401007]
[1693594900688,0.2114,25664.0,25656.0,0.02]
[1693594900891,0.44708678,25664.0,25659.0,0.1623]
[1693594901044,0.44708678,25664.0,25660.0,0.44602142]
[1693594901448,0.44708678,25664.0,25660.0,0.56293242]
[1693594901650,0.42708678,25664.0,25661.0,0.00064629]
[1693594901860,0.42708678,25664.0,25662.0,0.233808]
[1693594902025,0.04,25664.0,25662.0,0.233808]
[1693594902225,0.04,25665.0,25663.0,0.02344543]
[1693594902472,0.42708678,25665.0,25664.0,0.23379]
[1693594902635,0.42708678,25665.0,25664.0,0.13460721]
[1693594902841,0.2114,25666.0,25664.0,0.13460721]
[1693594903108,0.2114,25666.0,25664.0,0.36839721]
[1693594903109,0.38708678,25666.0,25664.0,0.36839721]
[1693594903320,0.44708678,25666.0,25665.0,0.07743406]
[1693594903526,0.44708678,25666.0,25661.0,0.116907]
[1693594903527,0.08,25662.0,25661.0,0.116907]
[1693594903733,0.08,25662.0,25661.0,0.396115]
[1693594903887,0.08,25662.0,25661.0,0.629931]
[1693594904076,0.18,25662.0,25661.0,0.629931]
[1693594904816,0.181,25662.0,25661.0,0.662931]
[1693594905173,0.56808678,25662.0,25661.0,0.208362]
[1693594905376,0.52808678,25662.0,25661.0,0.208362]
[1693594905576,0.56808678,25662.0,25661.0,0.3168792]
[1693594905790,0.56808678,25662.0,25661.0,0.033]
[1693594906175,0.56808678,25662.0,25661.0,0.05005615]
[1693594906588,0.56808678,25662.0,25661.0,0.22541815]
[1693594906789,0.56808678,25662.0,25661.0,0.296043]
[1693594907203,0.56808678,25662.0,25661.0,0.31314145]
[1693594907607,0.56808678,25662.0,25661.0,0.31427168]
[1693594908667,0.56808678,25662.0,25661.0,0.296043]
[1693594908872,0.181,25662.0,25661.0,0.296043]
[1693594909340,0.181,25662.0,25661.0,0.31314145]
[1693594909727,0.181,25662.0,25661.0,0.31427108]
[1693594910974,0.061,25662.0,25661.0,0.31427108]
[1693594911175,0.1,25665.0,25661.0,0.86365786]
[1693594911176,0.04,25665.0,25661.0,0.86365786]
[1693594911406,0.04,25665.0,25663.0,0.1623]
[1693594911620,0.04,25665.0,25664.0,0.438355]
[1693594911779,0.04,25665.0,25664.0,0.43947809]
[1693594913735,0.04,25665.0,25664.0,0.47747809]
[1693594913929,0.04,25665.0,25664.0,0.51547809]
[1693594917227,0.04,25665.0,25664.0,0.53249441]
[1693594917756,0.06,25669.0,25664.0,1.08188119]
[1693594917928,0.06,25668.0,25666.0,0.438315]
[1693594918136,0.06,25668.0,25667.0,0.1623]
[1693594918536,0.06,25668.0,25667.0,0.425283]
[1693594920545,0.06,25668.0,25667.0,0.428283]
[1693594923237,0.04,25670.0,25667.0,0.728283]
[1693594923438,0.04,25670.0,25667.0,0.41518442]
[1693594923569,0.04,25672.0,25670.0,0.43825]
[1693594923770,0.06,25672.0,25671.0,0.337594]
[1693594924174,0.02,25673.0,25671.0,0.337594]
[1693594924175,0.06,25673.0,25671.0,0.337594]
[1693594924380,0.06,25673.0,25671.0,0.425241]
[1693594924584,0.04,25673.0,25671.0,0.425241]
[1693594926217,0.02,25673.0,25671.0,0.425241]
[1693594926462,0.04,25673.0,25671.0,0.437241]
[1693594926730,0.04,25673.0,25671.0,0.425241]
[1693594926977,0.04,25675.0,25671.0,0.425241]
[1693594927219,0.001,25673.0,25671.0,0.43714242]
[1693594927450,0.06,25675.0,25672.0,0.1623]
[1693594927701,0.06,25675.0,25674.0,0.1623]
[1693594927911,0.06,25675.0,25674.0,0.337574]
[1693594928131,0.08,25675.0,25674.0,0.425211]
[1693594929508,0.06,25675.0,25674.0,0.450211]
[1693594929719,0.06,25677.0,25674.0,0.83729778]
[1693594929922,0.02,25675.0,25674.0,0.86529778]
[1693594930205,0.06,25681.0,25674.0,1.1767992]
[1693594930405,0.0195,25682.0,25675.0,1.0787882]
[1693594930542,0.04,25681.0,25680.0,0.1623]
[1693594930751,0.06,25681.0,25680.0,0.8738202]
[1693594930959,0.06,25681.0,25680.0,0.81223478]
[1693594931164,0.06,25681.0,25680.0,0.98746678]
[1693594931362,0.06,25681.0,25680.0,0.512764]
[1693594932532,0.06,25681.0,25680.0,0.52958534]
[1693594933650,0.06,25681.0,25680.0,0.54358534]
[1693594933842,0.06,25681.0,25680.0,0.54158534]
[1693594934183,0.06,25681.0,25680.0,0.55558534]
[1693594934389,0.06,25681.0,25680.0,0.54158534]
[1693594934623,0.06,25681.0,25680.0,0.56858534]
[1693594934835,0.06,25681.0,25680.0,0.55658534]
[1693594935394,0.06,25681.0,25680.0,0.56858534]
[1693594936043,0.06,25681.0,25680.0,0.55658534]
[1693594936219,0.06,25681.0,25680.0,0.58158534]
[1693594940659,0.06,25681.0,25680.0,0.33166934]
[1693594941060,0.56708678,25681.0,25680.0,0.06882134]
[1693594941412,0.56708678,25681.0,25680.0,0.052]
[1693594944326,1.94298777,25681.0,25680.0,0.052]
[1693594944734,1.96298777,25681.0,25680.0,0.052]
[1693594944938,2.56707677,25681.0,25680.0,0.052]
[1693594945141,1.98298777,25681.0,25680.0,0.052]
[1693594954301,0.81480977,25681.0,25680.0,0.052]
[1693594954857,0.81480977,25681.0,25680.0,0.08293189]
[1693594955183,0.38772299,25681.0,25680.0,0.46717989]
[1693594955680,0.42772299,25681.0,25680.0,0.46717989]
[1693594956254,0.42772299,25681.0,25680.0,0.37956389]
[1693594956455,0.38772299,25681.0,25680.0,0.25816389]
[1693594956834,0.38772299,25681.0,25680.0,0.46717989]
[1693594957540,0.38772299,25681.0,25680.0,0.48400559]
[1693594957903,0.38772299,25681.0,25680.0,0.44914159]
[1693594958117,0.77480977,25681.0,25680.0,0.06489359]
[1693594958530,0.77480977,25681.0,25680.0,0.15250959]
[1693594959063,0.77480977,25681.0,25680.0,0.13568389]
[1693594961139,0.38772299,25681.0,25680.0,0.13568389]
[1693594961343,0.38772299,25681.0,25680.0,0.34538598]
[1693594961847,0.38772299,25681.0,25680.0,0.36223916]
[1693594962444,0.38772299,25681.0,25680.0,0.31091589]
[1693594962661,0.77480977,25681.0,25680.0,0.04806789]
[1693594963586,0.86787976,25681.0,25680.0,0.04806789]
[1693594963947,1.94298777,25681.0,25680.0,0.04806789]
[1693594964151,2.50189275,25681.0,25680.0,0.04806789]
[1693594964394,2.48904244,25681.0,25680.0,0.04806789]
[1693594964607,2.48670244,25681.0,25680.0,0.04806789]
[1693594964755,2.29666244,25681.0,25680.0,0.04806789]
[1693594965163,2.53007985,25681.0,25680.0,0.04806789]
[1693594967263,2.34393986,25681.0,25680.0,0.04806789]
[1693594969111,2.11126487,25681.0,25680.0,0.04806789]
[1693594976103,2.39047486,25681.0,25680.0,0.04806789]
[1693594976315,2.11126487,25681.0,25680.0,0.04806789]
[1693594976516,2.39047486,25681.0,25680.0,0.04806789]
[1693594976922,2.11126487,25681.0,25680.0,0.04806789]
[1693594980310,2.39047486,25681.0,25680.0,0.04806789]
[1693594984428,2.11126487,25681.0,25680.0,0.04806789]
[1693594989367,3.60158386,25681.0,25680.0,0.04806789]
[1693594989571,3.63639296,25681.0,25680.0,0.04806789]
[1693594989774,3.74345065,25681.0,25680.0,0.04806789]
[1693594989981,4.11201065,25681.0,25680.0,0.02306789]
[1693594990187,4.11231065,25681.0,25680.0,0.02306789]
[1693594990386,4.3189042,25681.0,25680.0,0.02306789]
[1693594990611,0.16,25676.0,25675.0,0.2289]
[1693594990812,1.33824757,25676.0,25675.0,0.2289]
[1693594991023,1.7002219,25676.0,25673.0,0.175278]
[1693594991221,1.7002219,25676.0,25672.0,0.087641]
[1693594991222,0.22,25673.0,25672.0,0.2201]
[1693594991557,0.18,25670.0,25669.0,0.087651]
[1693594991723,0.33483471,25670.0,25669.0,0.087651]
[1693594991924,0.18,25670.0,25669.0,0.087651]
[1693594993341,0.181,25670.0,25669.0,0.184305]
[1693594994118,0.181,25670.0,25669.0,0.179959]
[1693594994315,0.181,25670.0,25669.0,0.17968073]
[1693594995347,1.15242578,25670.0,25669.0,0.008]
[1693594995970,1.27382578,25670.0,25669.0,0.008]
[1693594996176,1.85816478,25670.0,25669.0,0.008]
[1693594996378,2.56250378,25670.0,25669.0,0.008]
[1693594996578,2.63078378,25670.0,25669.0,0.008]
[1693594996815,2.56250378,25670.0,25669.0,0.008]
[1693594997646,0.06,25666.0,25665.0,0.408833]
[1693594997851,0.18,25666.0,25665.0,0.408833]
[1693594997970,0.18,25666.0,25665.0,0.175333]
[1693594998171,0.18,25666.0,25665.0,0.087666]
[1693594998380,0.18,25665.0,25663.0,0.299574]
[1693594998583,0.18,25664.0,25663.0,0.2119]
[1693594999186,0.14,25663.0,25662.0,0.087675]
[1693594999363,0.14,25663.0,25662.0,0.175351]
[1693595000727,0.143,25663.0,25662.0,0.212351]
[1693595001852,0.143,25663.0,25662.0,0.21347905]
[1693595002057,0.146,25663.0,25662.0,0.25047905]
[1693595002262,0.186,25663.0,25662.0,0.07512805]
[1693595002465,0.186,25663.0,25662.0,0.16280605]
[1693595003805,0.186,25663.0,25662.0,0.161678]
[1693595008550,0.186,25663.0,25662.0,0.074]
[1693595013367,0.186,25663.0,25662.0,0.161678]
[1693595013773,0.186,25663.0,25662.0,0.16212984]
[1693595016792,0.186,25663.0,25662.0,0.45888584]
[1693595016995,0.146,25663.0,25662.0,0.45888584]
[1693595017202,0.166,25663.0,25662.0,0.47596218]
[1693595017408,0.186,25663.0,25662.0,0.47596218]
[1693595020683,0.186,25663.0,25662.0,1.59923947]
[1693595020882,0.166,25663.0,25662.0,1.59923947]
[1693595021105,0.066,25663.0,25662.0,1.59923947]
[1693595021312,0.006,25663.0,25662.0,1.59923947]
[1693595022191,0.006,25663.0,25662.0,0.47596218]
[1693595022574,0.006,25663.0,25662.0,1.59918709]
[1693595024821,0.006,25663.0,25662.0,1.39011385]
[1693595024822,0.186,25663.0,25662.0,1.39011385]
[1693595025245,0.186,25663.0,25662.0,0.17920618]
[1693595025654,0.186,25663.0,25662.0,0.09107634]
[1693595026542,0.183,25663.0,25662.0,0.05407634]
[1693595026756,0.18,25663.0,25662.0,0.10520595]
[1693595027446,0.56708678,25663.0,25662.0,0.01752795]
[1693595027660,0.57008678,25663.0,25662.0,0.05252795]
[1693595027864,0.57008678,25663.0,25662.0,0.05207634]
[1693595028073,0.57308678,25663.0,25662.0,0.08907634]
[1693595028280,0.72798678,25663.0,25662.0,0.08907634]
[1693595028483,0.72498678,25663.0,25662.0,0.05207634]
[1693595028687,0.72498678,25663.0,25662.0,0.035]
[1693595028896,0.72398678,25663.0,25662.0,0.022]
[1693595029114,0.72798678,25663.0,25662.0,0.109678]
[1693595029317,0.72598678,25663.0,25662.0,0.087678]
[1693595029517,0.72598678,25663.0,25662.0,0.088678]
[1693595029518,0.73898678,25663.0,25662.0,0.088678]
[1693595029724,0.75598678,25663.0,25662.0,0.090678]
[1693595031614,0.75598678,25663.0,25662.0,0.003]
[1693595032042,2.41698478,25663.0,25662.0,0.003]
[1693595032861,2.69461108,25663.0,25662.0,0.003]
[1693595033067,2.41698478,25663.0,25662.0,0.003]
[1693595034319,2.48268478,25663.0,25662.0,0.003]
[1693595034524,2.41698478,25663.0,25662.0,0.003]
[1693595035570,2.62888667,25663.0,25662.0,0.003]
[1693595035750,2.70136667,25663.0,25662.0,0.003]
[1693595035949,2.70118667,25663.0,25662.0,0.003]
[1693595036167,2.70328667,25663.0,25662.0,0.003]
[1693595036332,2.80358667,25663.0,25662.0,0.003]
[1693595036533,3.10910667,25663.0,25662.0,0.003]
[1693595036758,3.10646667,25663.0,25662.0,0.003]
[1693595036910,3.10982667,25663.0,25662.0,0.003]
[1693595037115,3.11054667,25663.0,25662.0,0.003]
[1693595037333,3.70290567,25663.0,25662.0,0.003]
[1693595037535,3.69744567,25663.0,25662.0,0.003]
[1693595037765,3.69846567,25663.0,25662.0,0.003]
[1693595037960,3.69768567,25663.0,25662.0,0.003]
[1693595038199,3.70296567,25663.0,25662.0,0.003]
[1693595038440,3.49082378,25663.0,25662.0,0.003]
[1693595038582,3.49274378,25663.0,25662.0,0.003]
[1693595038787,3.49298378,25663.0,25662.0,0.003]
[1693595038987,3.49694378,25663.0,25662.0,0.003]
[1693595039193,3.70704196,25663.0,25662.0,0.003]
[1693595039394,3.49346378,25663.0,25662.0,0.003]
[1693595039594,3.48374378,25663.0,25662.0,0.003]
[1693595039756,3.40148378,25663.0,25662.0,0.003]
[1693595040430,3.46862378,25663.0,25662.0,0.003]
[1693595040664,1.11598678,25663.0,25662.0,0.003]
[1693595040808,0.81598678,25663.0,25662.0,0.090678]
[1693595041677,0.81598678,25663.0,25662.0,0.1172816]
[1693595041678,0.75598678,25663.0,25662.0,0.1172816]
[1693595041880,0.81598678,25663.0,25662.0,0.1172816]
[1693595042289,0.81598678,25663.0,25662.0,0.090678]
[1693595042852,0.79598678,25663.0,25662.0,0.090678]
[1693595043057,0.75598678,25663.0,25662.0,0.090678]
[1693595043275,0.79598678,25663.0,25662.0,0.090678]
[1693595043477,0.81598678,25663.0,25662.0,0.090678]
[1693595044550,0.81598678,25663.0,25662.0,0.117282]
[1693595045514,0.81598678,25663.0,25662.0,0.090678]
[1693595046668,0.79598678,25663.0,25662.0,0.178356]
[1693595046934,0.074,25663.0,25662.0,0.32755742]
[1693595047179,0.034,25663.0,25662.0,0.41523542]
[1693595047437,0.034,25663.0,25662.0,0.28233957]
[1693595047677,0.02,25665.0,25662.0,0.66942635]
[1693595047898,0.13997469,25672.0,25663.0,0.5362882]
[1693595047899,0.09331646,25672.0,25663.0,0.5362882]
[1693595048106,0.02,25672.0,25665.0,0.525992]
[1693595048314,0.02,25672.0,25666.0,0.8762882]
[1693595048516,0.02,25674.0,25668.0,0.35062]
[1693595048517,0.02,25671.0,25668.0,0.35062]
[1693595048734,0.02,25671.0,25668.0,0.9745632]
[1693595049232,0.02,25671.0,25668.0,0.91301678]
[1693595049909,0.023,25671.0,25668.0,0.95001678]
[1693595050139,0.02,25671.0,25668.0,0.91301678]
[1693595050363,0.023,25671.0,25668.0,0.95001678]
[1693595050576,0.025,25671.0,25668.0,0.98701678]
[1693595051001,0.023,25671.0,25668.0,0.95001678]
[1693595051363,0.025,25671.0,25668.0,0.98701678]
[1693595051741,0.025,25671.0,25669.0,0.00066657]
[1693595051946,0.025,25671.0,25670.0,0.3506]
[1693595052315,0.025,25671.0,25670.0,0.36699463]
[1693595052744,0.022,25671.0,25670.0,0.36699463]
[1693595052976,0.024,25671.0,25670.0,0.36699463]
[1693595053188,0.022,25671.0,25670.0,0.36699463]
[1693595053399,0.02,25671.0,25670.0,0.36699463]
[1693595053604,0.022,25671.0,25670.0,0.37899463]
[1693595054026,0.021,25671.0,25670.0,0.37899463]
[1693595054430,0.021,25671.0,25670.0,0.39099463]
[1693595054646,0.021,25671.0,25670.0,0.30334463]
[1693595054855,0.68292149,25671.0,25670.0,0.04039463]
[1693595055064,0.52808678,25671.0,25670.0,0.04039463]
[1693595055473,0.52808678,25671.0,25670.0,0.024]
[1693595056375,0.56808678,25671.0,25670.0,0.024]
[1693595056579,0.58808678,25671.0,25670.0,0.024]
[1693595064116,0.52808678,25671.0,25670.0,0.1993]
[1693595064318,0.141,25671.0,25670.0,0.3156453]
[1693595065276,0.141,25671.0,25670.0,0.2279953]
[1693595066361,0.141,25671.0,25670.0,0.3156453]
[1693595067725,0.041,25671.0,25670.0,0.3156453]